bitfinex-derivatives/quotes_SOLF0:USTF0_20250522
["timestamp","ask_amount","ask_price","bid_price","bid_amount"]
[1747953208812,5.22576679,179.08,179.06,5.5831]
[1747953209407,5.61961452,179.09,179.06,5.5831]
[1747953209606,0.03721452,179.09,179.06,5.5831]
[1747953210613,5.5826,179.08,179.06,5.5831]
[1747953210813,5.5826,179.08,179.05,5.62159108]
[1747953211116,5.61951452,179.09,179.05,0.03819108]
[1747953211618,5.61951452,179.09,179.06,5.583]
[1747953212615,0.03721452,179.09,179.07,5.5828]
[1747953213210,5.61951452,179.09,179.06,5.5831]
[1747953213711,0.03721452,179.09,179.06,5.5831]
[1747953214009,0.03721452,179.09,179.05,0.03819108]
[1747953214207,0.03721452,179.09,179.06,5.5831]
[1747953214605,0.03721452,179.09,179.05,0.03819108]
[1747953215215,5.61941452,179.09,179.07,5.5827]
[1747953215514,5.61941452,179.09,179.05,0.03819108]
[1747953215909,5.61941452,179.09,179.06,5.583]
[1747953216609,0.03721452,179.09,179.05,0.03819108]
[1747953217616,0.03721452,179.09,179.07,5.5826]
[1747953218318,5.61971452,179.09,179.06,5.5831]
[1747953218516,0.03721452,179.09,179.05,0.03819108]
[1747953218812,5.61951452,179.09,179.07,5.5828]
[1747953219217,0.03721452,179.09,179.07,5.5828]
[1747953220118,5.61951452,179.09,179.07,5.5828]
[1747953220820,0.03721452,179.09,179.07,5.5828]
[1747953222222,5.61941452,179.09,179.07,5.5828]
[1747953222626,0.03721452,179.09,179.07,5.5828]
[1747953230124,5.61951452,179.09,179.07,5.5828]
[1747953230525,0.03721452,179.09,179.07,5.5828]
[1747953232325,0.03721452,179.09,179.08,5.5825]
[1747953233527,0.03721452,179.09,179.07,5.5827]
[1747953233931,5.61951452,179.09,179.06,5.583]
[1747953234321,5.61951452,179.09,179.05,3.74241396]
[1747953234928,0.03721452,179.09,179.07,5.5827]
[1747953237029,0.03721452,179.09,179.05,3.74241396]
[1747953237224,5.61961452,179.09,179.06,5.583]
[1747953237530,0.03721452,179.09,179.05,0.03819108]
[1747953237726,5.5829,179.07,179.05,5.62159108]
[1747953239334,5.5827,179.08,179.05,5.62159108]
[1747953240327,0.03721452,179.09,179.05,0.03819108]
[1747953241635,0.03721452,179.09,179.07,5.5828]
[1747953243736,0.03721452,179.09,179.08,5.5825]
[1747953244535,0.03721452,179.09,179.07,5.5827]
[1747953247135,0.03721452,179.09,179.08,5.5825]
[1747953249825,0.03721452,179.09,179.08,9.28672288]
[1747953250032,5.22576679,179.16,179.08,3.70422288]
[1747953250341,5.22576679,179.16,179.07,112.58]
[1747953250342,5.22576679,179.16,179.11,3.70422288]
[1747953250725,10.80596679,179.16,179.13,5.5807]
[1747953250926,5.26589795,179.16,179.13,0.03748722]
[1747953251735,5.5806,179.15,179.13,0.03748722]
[1747953253031,5.5807,179.14,179.13,0.03748722]
[1747953257340,0.04013116,179.16,179.13,0.03748722]
[1747953257535,0.04013116,179.16,179.15,5.5804]
[1747953257843,0.04013116,179.16,179.14,3.70422288]
[1747953258045,0.04013116,179.16,179.15,5.5804]
[1747953260037,0.04013116,179.16,179.14,9.28482288]
[1747953260341,0.04013116,179.16,179.14,3.70422288]
[1747953262045,5.62033116,179.16,179.13,0.03748722]
[1747953262247,0.04013116,179.16,179.13,3.7417101]
[1747953262740,5.62043116,179.16,179.13,9.3227101]
[1747953263439,5.5804,179.15,179.13,9.3227101]
[1747953263645,0.04013116,179.16,179.13,9.3227101]
[1747953264051,5.5804,179.15,179.13,3.7417101]
[1747953264349,0.04013116,179.16,179.13,3.7417101]
[1747953264747,0.04013116,179.16,179.14,5.5805]
[1747953265748,0.04013116,179.16,179.13,9.3226101]
[1747953266052,5.62023116,179.16,179.13,9.3226101]
[1747953266749,0.04013116,179.16,179.14,5.5807]
[1747953268652,0.04013116,179.16,179.15,5.5804]
[1747953268847,0.04013116,179.16,179.13,3.7417101]
[1747953269250,0.04013116,179.16,179.14,5.5804]
[1747953272351,5.62033116,179.16,179.13,9.3226101]
[1747953272548,0.04013116,179.16,179.13,3.7417101]
[1747953272848,0.04013116,179.16,179.14,5.5806]
[1747953275253,5.62033116,179.16,179.13,9.3226101]
[1747953275451,0.04013116,179.16,179.13,0.03748722]
[1747953275856,5.5807,179.14,179.13,0.03748722]
[1747953278158,5.5823,179.09,179.06,598.48422288]
[1747953278352,5.5823,179.09,179.06,116.14422288]
[1747953279157,0.03897034,179.09,179.06,121.76279796]
[1747953279656,0.03897034,179.09,179.06,116.17969796]
[1747953279865,0.03897034,179.09,179.08,5.5825]
[1747953286769,0.03897034,179.09,179.07,5.5827]
[1747953286965,0.03897034,179.09,179.06,112.47547508]
[1747953287669,0.03897034,179.09,179.07,5.5829]
[1747953288672,0.03897034,179.09,179.08,5.5825]
[1747953292975,0.03897034,179.09,179.06,116.17969796]
[1747953292976,0.03897034,179.09,179.06,121.76269796]
[1747953293278,0.03897034,179.09,179.06,118.05847508]
[1747953293471,0.03897034,179.09,179.06,112.47547508]
[1747953293867,0.03897034,179.09,179.06,118.05847508]
[1747953294067,0.03897034,179.09,179.06,112.47547508]
[1747953294676,0.03897034,179.09,179.07,5.5828]
[1747953294975,0.03897034,179.09,179.06,112.47547508]
[1747953295272,0.03897034,179.09,179.06,5.61847508]
[1747953295674,5.62137034,179.09,179.06,5.61847508]
[1747953295875,0.03897034,179.09,179.06,0.03547508]
[1747953296565,5.62137034,179.09,179.06,5.61857508]
[1747953296765,0.03897034,179.09,179.06,0.03547508]
[1747953298282,5.5829,179.07,179.06,0.03547508]
[1747953298982,5.5826,179.08,179.06,0.03547508]
[1747953299284,112.49897034,179.09,179.06,0.03547508]
[1747953300380,5.5829,179.07,179.06,0.03547508]
[1747953300783,112.49897034,179.09,179.06,0.03547508]
[1747953300981,5.5828,179.08,179.06,0.03547508]
[1747953301883,0.03897034,179.09,179.06,5.61857508]
[1747953302178,5.5826,179.08,179.06,5.61857508]
[1747953302780,5.5826,179.08,179.06,0.03547508]
[1747953303282,5.5829,179.07,179.06,0.03547508]
[1747953305983,5.5847,179.01,179.0,3.98644301]
[1747953306186,3.70422288,179.06,179.0,3.98644301]
[1747953306587,3.70422288,179.06,179.0,9.57124301]
[1747953306987,0.03529534,179.05,179.01,0.04017397]
[1747953307485,5.584,179.04,179.01,0.04017397]
[1747953307680,0.03529534,179.05,179.01,0.04017397]
[1747953308090,5.5839,179.04,179.01,0.04017397]
[1747953308389,0.03529534,179.05,179.02,5.5842]
[1747953309281,0.03529534,179.05,179.01,5.62477397]
[1747953309583,0.03529534,179.05,179.01,0.04017397]
[1747953309789,5.5841,179.04,179.01,5.62487397]
[1747953310379,5.5841,179.03,179.01,0.04017397]
[1747953311090,5.5838,179.04,179.01,0.04017397]
[1747953311285,0.03529534,179.05,179.01,0.04017397]
[1747953311583,0.03529534,179.05,179.04,5.5838]
[1747953313486,112.5,179.13,179.07,5.5825]
[1747953313687,112.5,179.13,179.03,1.9749]
[1747953313997,112.5,179.13,179.06,5.583]
[1747953314193,5.5823,179.09,179.06,5.583]
[1747953314393,5.62230287,179.09,179.06,5.6196244]
[1747953317597,0.04000287,179.09,179.06,5.6196244]
[1747953318399,0.04000287,179.09,179.07,5.5827]
[1747953324199,5.62230287,179.09,179.06,5.6196244]
[1747953324498,0.04000287,179.09,179.06,0.0366244]
[1747953324700,0.04000287,179.09,179.07,5.5828]
[1747953324999,0.04000287,179.09,179.06,0.0366244]
[1747953325698,0.04000287,179.09,179.06,5.6195244]
[1747953325699,5.62240287,179.09,179.06,5.6195244]
[1747953326093,0.04000287,179.09,179.06,5.6195244]
[1747953327393,5.62230287,179.09,179.06,5.6195244]
[1747953328095,0.04000287,179.09,179.06,0.0366244]
[1747953328500,5.5828,179.08,179.06,0.0366244]
[1747953330302,5.5828,179.08,179.06,5.6198244]
[1747953330605,5.62240287,179.09,179.06,5.6198244]
[1747953333704,5.62240287,179.09,179.07,5.5828]
[1747953333903,0.04000287,179.09,179.06,3.74103912]
[1747953335710,0.04000287,179.09,179.08,5.5825]
[1747953347819,0.04000287,179.09,179.08,118.0425]
[1747953367743,0.04000287,179.09,179.08,121.74691472]
[1747953368245,0.04000287,179.09,179.08,125.72992352]
[1747953369540,5.20117036,179.19,179.15,5.5803]
[1747953369747,5.20117036,179.19,179.14,3.70441472]
[1747953370339,5.20117036,179.19,179.17,5.5795]
[1747953370738,5.20117036,179.19,179.18,5.5794]
[1747953371250,0.0354173,179.2,179.18,5.5794]
[1747953371545,5.6142173,179.2,179.18,5.5794]
[1747953372044,0.0354173,179.2,179.18,5.5794]
[1747953372647,5.6142173,179.2,179.18,5.5794]
[1747953372846,0.0354173,179.2,179.18,5.5794]
[1747953373748,0.0354173,179.2,179.19,5.5791]
[1747953376150,0.0354173,179.2,179.18,5.5793]
[1747953379257,0.0354173,179.2,179.19,5.5791]
[1747953379447,0.0354173,179.2,179.16,0.04151337]
[1747953379850,0.0354173,179.2,179.18,5.5794]
[1747953381055,0.0354173,179.2,179.19,5.5791]
[1747953381257,0.0354173,179.2,179.16,0.04151337]
[1747953381448,0.0354173,179.2,179.18,5.5791]
[1747953381649,0.0354173,179.2,179.16,0.04151337]
[1747953381951,0.0354173,179.2,179.19,5.5791]
[1747953382153,0.0354173,179.2,179.19,9.28351472]
[1747953382354,112.36,179.27,179.19,3.70441472]
[1747953382652,5.5777,179.24,179.21,5.5784]
[1747953383051,5.5777,179.24,179.19,109.74441472]
[1747953383257,0.02205526,179.23,179.2,0.04260807]
[1747953384150,0.02205526,179.23,179.22,5.5782]
[1747953388865,0.02205526,179.23,179.21,112.34]
[1747953389561,0.02205526,179.23,179.21,117.9184]
[1747953390363,0.02205526,179.23,179.22,5.5782]
[1747953395167,0.02205526,179.23,179.21,112.34]
[1747953396068,0.02205526,179.23,179.22,5.5782]
[1747953396868,0.02205526,179.23,179.21,117.9183]
[1747953397162,0.02205526,179.23,179.21,112.34]
[1747953397564,0.02205526,179.23,179.21,5.5784]
[1747953398366,5.59995526,179.23,179.21,5.5784]
[1747953398559,5.59995526,179.23,179.2,111.64130807]
[1747953398865,5.5785,179.22,179.2,0.04260807]
[1747953399967,5.59995526,179.23,179.2,5.62130807]
[1747953400569,5.59995526,179.23,179.2,0.04260807]
[1747953401075,0.02205526,179.23,179.2,5.62120807]
[1747953401371,0.02205526,179.23,179.2,0.04260807]
[1747953401869,5.5785,179.21,179.2,0.04260807]
[1747953402262,3.70441472,179.22,179.15,5.5803]
[1747953402662,3.70441472,179.22,179.13,112.34]
[1747953402859,3.70441472,179.2,179.13,112.34]
[1747953403271,5.5799,179.17,179.15,0.0415939]
[1747953403566,0.03581099,179.18,179.15,0.0415939]
[1747953404068,0.03581099,179.18,179.15,5.6218939]
[1747953404468,5.61531099,179.18,179.15,5.6218939]
[1747953405471,5.5798,179.17,179.15,0.0415939]
[1747953405868,0.03581099,179.18,179.15,0.0415939]
[1747953406667,5.5801,179.16,179.15,0.0415939]
[1747953407674,3.74022571,179.18,179.15,0.0415939]
[1747953408269,9.31992571,179.18,179.15,0.0415939]
[1747953408569,3.74022571,179.18,179.15,0.0415939]
[1747953409067,3.74022571,179.18,179.15,5.6218939]
[1747953409774,9.31982571,179.18,179.15,5.6218939]
[1747953410173,3.74022571,179.18,179.15,0.0415939]
[1747953410365,5.58,179.17,179.15,0.0415939]
[1747953410670,3.74022571,179.18,179.15,0.0415939]
[1747953412469,0.03581099,179.18,179.15,0.0415939]
[1747953412974,5.61531099,179.18,179.15,0.0415939]
[1747953413269,0.03581099,179.18,179.15,0.0415939]
[1747953413770,5.61531099,179.18,179.15,0.0415939]
[1747953415473,0.03581099,179.18,179.15,0.0415939]
[1747953415771,3.74022571,179.18,179.15,0.0415939]
[1747953416669,9.28451472,179.16,179.15,0.0415939]
[1747953416873,0.03581099,179.18,179.15,0.0415939]
[1747953416874,3.74022571,179.18,179.15,0.0415939]
[1747953417270,0.03581099,179.18,179.15,0.0415939]
[1747953418276,0.03581099,179.18,179.16,5.58]
[1747953418474,0.03581099,179.18,179.15,0.0415939]
[1747953419378,0.03581099,179.18,179.16,5.5799]
[1747953419580,0.03581099,179.18,179.15,0.0415939]
[1747953420182,0.03581099,179.18,179.17,5.5797]
[1747953426884,0.03581099,179.18,179.16,5.5798]
[1747953428188,0.03581099,179.18,179.17,5.5797]
[1747953430293,0.03581099,179.18,179.16,5.5799]
[1747953430491,0.03581099,179.18,179.15,0.0415939]
[1747953431392,0.03581099,179.18,179.16,5.5799]
[1747953431795,0.03581099,179.18,179.17,5.5797]
[1747953431989,116.02441472,179.26,179.16,3.70441472]
[1747953432191,5.5776,179.24,179.21,5.5783]
[1747953432791,5.5776,179.24,179.22,5.5782]
[1747953432991,5.60625234,179.25,179.22,5.5782]
[1747953433191,0.02885234,179.25,179.22,5.5782]
[1747953433494,0.02885234,179.25,179.23,5.5778]
[1747953434694,5.60615234,179.25,179.23,5.5778]
[1747953434889,0.02885234,179.25,179.23,5.5778]
[1747953435795,0.02885234,179.25,179.21,0.04224941]
[1747953436390,5.5777,179.24,179.21,5.62044941]
[1747953439003,5.578,179.23,179.21,0.04224941]
[1747953440204,5.5776,179.24,179.21,5.62054941]
[1747953442899,5.5776,179.24,179.22,5.5782]
[1747953443195,5.60615234,179.25,179.22,5.5782]
[1747953443604,0.02885234,179.25,179.21,0.04224941]
[1747953444296,0.02885234,179.25,179.24,5.5776]
[1747953454313,0.02885234,179.25,179.23,5.5778]
[1747953455413,0.02885234,179.25,179.21,5.62054941]
[1747953456307,5.5778,179.24,179.21,5.62054941]
[1747953458015,5.60625234,179.25,179.22,5.578]
[1747953458311,0.02885234,179.25,179.22,5.578]
[1747953459014,5.5776,179.24,179.21,5.62064941]
[1747953459412,0.02885234,179.25,179.21,0.04224941]
[1747953459714,5.60635234,179.25,179.22,5.578]
[1747953461215,5.60635234,179.25,179.21,0.04224941]
[1747953461216,0.02885234,179.25,179.23,5.5777]
[1747953461414,0.02885234,179.25,179.21,0.04224941]
[1747953462421,0.02885234,179.25,179.23,5.5777]
[1747953463812,5.60615234,179.25,179.21,0.04224941]
[1747953464017,0.02885234,179.25,179.21,0.04224941]
[1747953464321,5.60615234,179.25,179.22,5.578]
[1747953464512,5.60615234,179.25,179.21,0.04224941]
[1747953465226,5.60615234,179.25,179.23,5.5779]
[1747953465827,5.60615234,179.25,179.22,5.5781]
[1747953467315,5.5777,179.24,179.21,5.62054941]
[1747953467519,0.02885234,179.25,179.21,0.04224941]
[1747953467726,5.60635234,179.25,179.22,5.5782]
[1747953468430,5.5776,179.24,179.22,5.5782]
[1747953469030,5.60625234,179.25,179.22,5.5781]
[1747953469327,5.60625234,179.25,179.21,0.04224941]
[1747953469824,5.60625234,179.25,179.22,5.5781]
[1747953470123,5.60625234,179.25,179.21,0.04224941]
[1747953470426,5.60625234,179.25,179.23,5.5777]
[1747953473828,0.02885234,179.25,179.23,5.5777]
[1747953475625,0.02885234,179.25,179.24,5.5776]
[1747953487333,117.32628126,179.32,179.24,7.5159136]
[1747953487532,5.18628126,179.32,179.24,7.5159136]
[1747953487728,5.5758,179.3,179.24,7.5159136]
[1747953488230,5.5752,179.32,179.26,3.6980136]
[1747953488433,5.5752,179.32,179.27,106.04253329]
[1747953488828,5.5752,179.32,179.29,5.5758]
[1747953489430,482.02,179.38,179.32,5.5751]
[1747953489632,594.16,179.38,179.33,0.04133373]
[1747953489831,597.8580136,179.38,179.33,0.04133373]
[1747953490137,597.8580136,179.38,179.33,5.61603373]
[1747953490336,597.8580136,179.38,179.33,0.04133373]
[1747953490732,3.6980136,179.36,179.33,0.04133373]
[1747953492634,5.5745,179.34,179.33,0.04133373]
[1747953499846,3.6980136,179.36,179.33,0.04133373]
[1747953499847,5.574,179.36,179.33,0.04133373]
[1747953500040,3.6980136,179.38,179.33,0.04133373]
[1747953500339,5.574,179.36,179.33,0.04133373]
[1747953500543,3.6980136,179.38,179.33,0.04133373]
[1747953500939,11.142,179.46,179.33,0.04133373]
[1747953501135,3.6980136,179.42,179.38,0.03964396]
[1747953501543,5.5723,179.41,179.38,0.03964396]
[1747953502347,5.5727,179.4,179.38,0.03964396]
[1747953502542,112.04,179.45,179.38,0.03964396]
[1747953502739,3.6980136,179.43,179.38,0.03964396]
[1747953503245,5.5723,179.41,179.38,0.03964396]
[1747953504039,481.84,179.47,179.38,0.03964396]
[1747953504245,112.02,179.46,179.38,0.03964396]
[1747953504845,5.5718,179.43,179.38,5.61274396]
[1747953505252,5.5718,179.43,179.38,0.03964396]
[1747953505543,5.5718,179.43,179.39,5.5727]
[1747953508246,5.572,179.42,179.39,5.5727]
[1747953508552,5.572,179.42,179.38,5.61274396]
[1747953509846,5.5717,179.43,179.39,5.5728]
[1747953512150,112.02,179.46,179.38,0.03964396]
[1747953512351,5.76970522,179.44,179.38,0.03964396]
[1747953512848,5.5729,179.39,179.38,0.03964396]
[1747953517358,117.5527,179.4,179.38,0.03964396]
[1747953517652,111.98,179.4,179.38,0.03964396]
[1747953518953,111.98,179.43,179.38,5.61274396]
[1747953519755,5.5722,179.42,179.38,5.61274396]
[1747953521156,5.5722,179.42,179.39,5.5729]
[1747953522056,5.5722,179.42,179.38,5.61274396]
[1747953522355,5.5723,179.41,179.38,5.61274396]
[1747953526154,3.69224238,179.42,179.38,0.03964396]
[1747953527658,5.5729,179.4,179.38,0.03964396]
[1747953527854,3.69224238,179.42,179.38,0.03964396]
[1747953528360,3.69224238,179.4,179.38,0.03964396]
[1747953528655,117.5529,179.39,179.38,0.03964396]
[1747953529351,121.24514238,179.39,179.38,0.03964396]
[1747953531555,117.5529,179.39,179.38,0.03964396]
[1747953540461,111.98,179.39,179.38,0.03964396]
[1747953542160,117.5529,179.39,179.38,0.03964396]
[1747953546767,5.5729,179.39,179.38,0.03964396]
[1747953550368,5.5726,179.41,179.38,0.03964396]
[1747953551571,5.5726,179.41,179.39,5.5727]
[1747953551770,117.5321,179.42,179.39,5.5727]
[1747953552270,111.96,179.42,179.39,5.5727]
[1747953553570,5.5724,179.41,179.39,5.5727]
[1747953553978,111.96,179.42,179.4,5.5726]
[1747953554269,5.5723,179.41,179.38,0.03964396]
[1747953555474,5.5727,179.4,179.38,5.61274396]
[1747953556271,5.5724,179.41,179.38,5.61274396]
[1747953557974,111.96,179.42,179.38,0.03964396]
[1747953558677,5.5729,179.39,179.38,0.03964396]
[1747953564784,5.5745,179.34,179.33,3.98994214]
[1747953565181,5.5745,179.34,179.28,109.61224238]
[1747953565481,5.5745,179.34,179.31,5.5752]
[1747953565980,5.61322256,179.34,179.31,5.61775292]
[1747953566582,0.03872256,179.34,179.31,5.61775292]
[1747953566775,0.03872256,179.34,179.33,5.5748]
[1747953571283,0.03872256,179.34,179.31,0.04255292]
[1747953571882,5.61322256,179.34,179.31,0.04255292]
[1747953572480,0.03872256,179.34,179.31,5.61795292]
[1747953573987,5.61322256,179.34,179.31,0.04255292]
[1747953574373,5.5748,179.33,179.31,0.04255292]
[1747953575387,5.5751,179.32,179.31,0.04255292]
[1747953579491,5.5749,179.33,179.31,0.04255292]
[1747953579692,111.97872256,179.34,179.31,0.04255292]
[1747953580190,5.5751,179.32,179.31,0.04255292]
[1747953580792,111.97872256,179.34,179.31,0.04255292]
[1747953580990,5.575,179.33,179.31,0.04255292]
[1747953581689,5.5751,179.32,179.31,0.04255292]
[1747953586197,5.5749,179.33,179.31,0.04255292]
[1747953586398,111.97872256,179.34,179.31,0.04255292]
[1747953586897,5.575,179.33,179.31,0.04255292]
[1747953590000,111.97872256,179.34,179.31,0.04255292]
[1747953590492,5.575,179.33,179.31,0.04255292]
[1747953590698,111.97872256,179.34,179.31,0.04255292]
[1747953591197,5.5751,179.32,179.31,0.04255292]
[1747953592801,5.5748,179.33,179.31,0.04255292]
[1747953593003,111.97872256,179.34,179.31,0.04255292]
[1747953593402,5.5751,179.32,179.31,0.04255292]
[1747953601509,5.5748,179.33,179.31,0.04255292]
[1747953601815,111.97872256,179.34,179.31,0.04255292]
[1747953601999,5.575,179.33,179.31,0.04255292]
[1747953602203,111.97872256,179.34,179.31,0.04255292]
[1747953602510,5.575,179.33,179.31,0.04255292]
[1747953602713,111.97872256,179.34,179.31,0.04255292]
[1747953603111,5.5749,179.33,179.31,0.04255292]
[1747953607228,111.97872256,179.34,179.31,0.04255292]
[1747953608119,5.5751,179.32,179.31,0.04255292]
[1747953610627,5.5751,179.32,179.31,5.292e-05]
[1747953616432,9.27006496,179.32,179.31,5.292e-05]
[1747953628041,5.5751,179.32,179.31,5.292e-05]
[1747953628243,9.27006496,179.32,179.31,5.292e-05]
[1747953634943,5.5751,179.32,179.31,5.292e-05]
[1747953635140,117.4751,179.32,179.31,5.292e-05]
[1747953635649,111.9,179.32,179.31,5.292e-05]
[1747953636048,5.23582438,179.34,179.31,5.292e-05]
[1747953636347,10.81052438,179.34,179.31,5.292e-05]
[1747953636749,5.23582438,179.34,179.31,5.292e-05]
[1747953637045,5.575,179.33,179.31,5.292e-05]
[1747953643154,5.5751,179.32,179.31,5.292e-05]
[1747953647358,5.5749,179.33,179.31,5.292e-05]
[1747953647657,0.03872256,179.34,179.31,5.292e-05]
[1747953648257,5.5748,179.33,179.31,5.292e-05]
[1747953649162,0.03872256,179.34,179.31,5.292e-05]
[1747953650458,5.575,179.33,179.31,5.292e-05]
[1747953654861,5.5751,179.32,179.31,5.292e-05]
[1747953655863,5.5749,179.33,179.31,5.292e-05]
[1747953657064,5.5751,179.32,179.31,5.292e-05]
[1747953661777,5.61332256,179.34,179.31,5.57525292]
[1747953662176,5.61332256,179.34,179.31,5.292e-05]
[1747953662365,5.5748,179.33,179.31,5.292e-05]
[1747953663277,5.5751,179.32,179.31,5.292e-05]
[1747953672280,5.5749,179.33,179.31,5.292e-05]
[1747953674188,0.03872256,179.34,179.32,5.5751]
[1747953674586,0.03872256,179.34,179.31,5.292e-05]
[1747953675391,5.61322256,179.34,179.31,5.57525292]
[1747953679691,5.61322256,179.34,179.32,5.575]
[1747953681597,0.03872256,179.34,179.32,5.575]
[1747953682997,5.61322256,179.34,179.32,5.575]
[1747953683501,0.03872256,179.34,179.32,5.575]
[1747953683796,0.03872256,179.34,179.33,5.5748]
[1747953684599,0.03872256,179.34,179.32,5.5749]
[1747953684796,0.03872256,179.34,179.31,5.292e-05]
[1747953685698,0.03872256,179.34,179.33,5.5748]
[1747953712111,5.21507555,179.41,179.33,5.5748]
[1747953712414,5.21507555,179.41,179.33,109.63496496]
[1747953712916,5.5727,179.4,179.38,5.5732]
[1747953713218,5.25182562,179.41,179.38,5.5732]
[1747953713611,5.60915007,179.41,179.37,5.61181458]
[1747953714317,5.5726,179.4,179.37,5.61181458]
[1747953714515,0.03675007,179.41,179.37,5.61181458]
[1747953715017,5.5726,179.4,179.37,5.61181458]
[1747953717219,9.26816496,179.38,179.37,0.03841458]
[1747953717418,3.69496496,179.38,179.33,3.99484949]
[1747953717624,3.69496496,179.34,179.31,5.32668828]
[1747953717824,3.69496496,179.32,179.24,10.65471031]
[1747953718016,3.69496496,179.29,179.24,10.65471031]
[1747953718321,120.83096496,179.29,179.27,0.04289396]
[1747953718722,5.5763,179.28,179.27,0.04289396]
[1747953724925,111.6,179.29,179.27,0.04289396]
[1747953726227,117.1763,179.29,179.27,0.04289396]
[1747953726828,111.6,179.29,179.27,0.04289396]
[1747953727627,5.5763,179.28,179.27,0.04289396]
[1747953734129,0.03568414,179.3,179.27,0.04289396]
[1747953735631,5.61138414,179.3,179.28,5.5763]
[1747953735929,0.03568414,179.3,179.28,5.5763]
[1747953736624,5.61138414,179.3,179.28,5.5763]
[1747953737130,5.61138414,179.3,179.27,0.04289396]
[1747953737432,0.03568414,179.3,179.27,0.04289396]
[1747953737633,0.03568414,179.3,179.28,5.5763]
[1747953737934,0.03568414,179.3,179.27,0.04289396]
[1747953739231,0.03568414,179.3,179.29,5.576]
[1747953754836,0.03568414,179.3,179.28,5.5762]
[1747953756641,0.03568414,179.3,179.29,5.576]
[1747953760842,0.03568414,179.3,179.27,3.85539396]
[1747953761046,0.03568414,179.3,179.27,1.94099396]
[1747953761244,111.53568414,179.3,179.27,0.04289396]
[1747953761443,5.5763,179.29,179.27,0.04289396]
[1747953762047,5.5763,179.28,179.27,0.04289396]
[1747953766146,5.5763,179.28,179.27,9.396e-05]
[1747953766951,5.5781,179.23,179.19,10.89197797]
[1747953767153,5.5781,179.23,179.19,5.579]
[1747953768047,5.61630749,179.23,179.19,5.61745262]
[1747953768253,0.03820749,179.23,179.19,0.03845262]
[1747953768755,5.5787,179.21,179.19,0.03845262]
[1747953769053,0.03820749,179.23,179.19,0.03845262]
[1747953769552,5.5786,179.21,179.19,0.03845262]
[1747953769751,0.03820749,179.23,179.19,0.03845262]
[1747953770255,5.5787,179.21,179.19,0.03845262]
[1747953772355,5.5788,179.2,179.19,0.03845262]
[1747953772555,0.03820749,179.23,179.19,0.03845262]
[1747953773259,5.5787,179.21,179.19,0.03845262]
[1747953774558,0.03820749,179.23,179.19,0.03845262]
[1747953775157,5.5785,179.22,179.19,0.03845262]
[1747953776657,5.5785,179.21,179.19,0.03845262]
[1747953785266,5.5788,179.2,179.19,0.03845262]
[1747953785769,0.03820749,179.23,179.19,0.03845262]
[1747953786069,3.73317245,179.23,179.19,0.03845262]
[1747953786267,5.5782,179.22,179.19,0.03845262]
[1747953786468,3.73317245,179.23,179.19,0.03845262]
[1747953786768,5.5784,179.22,179.19,0.03845262]
[1747953787069,3.73317245,179.23,179.19,0.03845262]
[1747953787269,5.5782,179.22,179.19,0.03845262]
[1747953788275,5.5785,179.21,179.19,0.03845262]
[1747953789974,5.5788,179.2,179.19,0.03845262]
[1747953792081,5.5786,179.21,179.19,0.03845262]
[1747953794281,9.31107245,179.23,179.19,0.03845262]
[1747953794478,111.46,179.22,179.19,0.03845262]
[1747953794779,117.0382,179.22,179.19,0.03845262]
[1747953795178,117.0382,179.22,179.19,5.61735262]
[1747953795879,0.03820749,179.23,179.19,0.03845262]
[1747953796179,5.61620749,179.23,179.19,0.03845262]
[1747953796580,5.61620749,179.23,179.2,5.5786]
[1747953799680,5.61620749,179.23,179.21,5.5785]
[1747953801583,0.03820749,179.23,179.19,0.03845262]
[1747953802485,0.03820749,179.23,179.2,5.5785]
[1747953802891,5.61620749,179.23,179.2,5.5785]
[1747953804691,5.5783,179.22,179.19,5.61745262]
[1747953805194,0.03820749,179.23,179.19,5.61745262]
[1747953805491,0.03820749,179.23,179.2,5.5788]
[1747953805697,5.61630749,179.23,179.2,5.5788]
[1747953806190,3.69496496,179.22,179.19,0.03845262]
[1747953806399,5.5785,179.21,179.19,0.03845262]
[1747953806693,0.03820749,179.23,179.19,0.03845262]
[1747953807081,5.5782,179.22,179.19,0.03845262]
[1747953807298,0.03820749,179.23,179.19,0.03845262]
[1747953807596,5.5787,179.21,179.19,0.03845262]
[1747953814800,0.03820749,179.23,179.19,0.03845262]
[1747953816402,5.61630749,179.23,179.2,5.5787]
[1747953818703,5.5783,179.22,179.19,5.61745262]
[1747953820703,5.5783,179.22,179.19,9.60779614]
[1747953821604,5.61620749,179.23,179.2,5.5788]
[1747953824104,5.5783,179.22,179.19,9.60779614]